Workbook

Sheet Sheet1
B1: 安阳市殷都区2018年公开招聘150名教师拟进入面试人员名单
A2: 序号 | B2: 考号 | C2: 报名序号 | D2: 姓名 | E2: 身份证号 | F2: 报考岗位 | G2: 教育理论卷面分数 | H2: 折合 分数 （50%） | I2: 公共基础知识卷面分数 | J2: 折合 分数 （50%） | K2: 笔试 成绩
A3: 1 | B3: 18010011946 | C3: 01508 | D3: 田苗苗 | E3: 41052119930702002X | F3: 高中语文_01001 | G3: 75.5 | H3: =G3/2 -> 37.75 | I3: 65 | J3: =I3/2 -> 32.5 | K3: =H3+J3 -> 70.25
A4: 2 | B4: 18010012009 | C4: 01451 | D4: 史君兰 | E4: 410511199307241225 | F4: 高中语文_01001 | G4: 70.5 | H4: 35.25 | I4: 70 | J4: 35 | K4: 70.25
A5: 3 | B5: 18010011962 | C5: 00955 | D5: 李雪 | E5: 410522199201112440 | F5: 高中语文_01001 | G5: 70 | H5: 35 | I5: 66 | J5: 33 | K5: 68
A6: 4 | B6: 18010011951 | C6: 00881 | D6: 孙凤姣 | E6: 410522199009273228 | F6: 高中语文_01001 | G6: 71 | H6: 35.5 | I6: 64 | J6: 32 | K6: 67.5
A7: 5 | B7: 18010011986 | C7: 01102 | D7: 孟颖超 | E7: 410222198710191561 | F7: 高中语文_01001 | G7: 71 | H7: 35.5 | I7: 63 | J7: 31.5 | K7: 67
A8: 6 | B8: 18010011947 | C8: 02026 | D8: 田梦珍 | E8: 410522199503083729 | F8: 高中语文_01001 | G8: 74.5 | H8: 37.25 | I8: 58 | J8: 29 | K8: 66.25
A9: 7 | B9: 18010012004 | C9: 01816 | D9: 冯梅英 | E9: 410522198906206426 | F9: 高中语文_01001 | G9: 77 | H9: 38.5 | I9: 55 | J9: 27.5 | K9: 66
A10: 8 | B10: 18010012010 | C10: 02371 | D10: 孙悦 | E10: 410503199508145029 | F10: 高中语文_01001 | G10: 71 | H10: 35.5 | I10: 61 | J10: 30.5 | K10: 66
A11: 9 | B11: 18010011968 | C11: 00701 | D11: 李喜云 | E11: 410504199207291520 | F11: 高中语文_01001 | G11: 66.5 | H11: 33.25 | I11: 64 | J11: 32 | K11: 65.25
A12: 10 | B12: 18010011961 | C12: 01085 | D12: 王微微 | E12: 41052119930924502X | F12: 高中语文_01001 | G12: 74 | H12: 37 | I12: 55 | J12: 27.5 | K12: 64.5
A13: 11 | B13: 18010012011 | C13: 01651 | D13: 原晓红 | E13: 410521199006224520 | F13: 高中语文_01001 | G13: 67 | H13: 33.5 | I13: 62 | J13: 31 | K13: 64.5
A14: 12 | B14: 18010011958 | C14: 01730 | D14: 郭政 | E14: 41052319960817501x | F14: 高中语文_01001 | G14: 63.5 | H14: 31.75 | I14: 65 | J14: 32.5 | K14: 64.25
A15: 13 | B15: 18010011937 | C15: 00758 | D15: 卢伟丽 | E15: 41052119890201704X | F15: 高中语文_01001 | G15: 67.5 | H15: 33.75 | I15: 60 | J15: 30 | K15: 63.75
A16: 14 | B16: 18010012003 | C16: 00888 | D16: 许炳松 | E16: 410521199311152017 | F16: 高中语文_01001 | G16: 65 | H16: 32.5 | I16: 62 | J16: 31 | K16: 63.5
A17: 15 | B17: 18010011941 | C17: 00469 | D17: 齐杰 | E17: 410504199505075025 | F17: 高中语文_01001 | G17: 66.5 | H17: 33.25 | I17: 60 | J17: 30 | K17: 63.25
A18: 16 | B18: 18010011971 | C18: 01116 | D18: 张盈盈 | E18: 410521198905173523 | F18: 高中语文_01001 | G18: 65.5 | H18: 32.75 | I18: 60 | J18: 30 | K18: 62.75
A19: 17 | B19: 18010011963 | C19: 02375 | D19: 刘雪 | E19: 410503199210265001 | F19: 高中语文_01001 | G19: 60.5 | H19: 30.25 | I19: 64 | J19: 32 | K19: 62.25
A20: 18 | B20: 18010011964 | C20: 00573 | D20: 许高歌 | E20: 410326199308290612 | F20: 高中语文_01001 | G20: 64 | H20: 32 | I20: 60 | J20: 30 | K20: 62
A21: 19 | B21: 18010022034 | C21: 02302 | D21: 常俊建 | E21: 130434199205066931 | F21: 高中数学_01002 | G21: 72 | H21: 36 | I21: 51 | J21: 25.5 | K21: =H21+J21 -> 61.5
A22: 20 | B22: 18010022071 | C22: 00014 | D22: 陈秀林 | E22: 410522199309131360 | F22: 高中数学_01002 | G22: 68 | H22: 34 | I22: 55 | J22: 27.5 | K22: 61.5
A23: 21 | B23: 18010022046 | C23: 01048 | D23: 任冠儒 | E23: 41050219910522202X | F23: 高中数学_01002 | G23: 64 | H23: 32 | I23: 58 | J23: 29 | K23: 61
A24: 22 | B24: 18010022059 | C24: 00178 | D24: 王文玉 | E24: 410521199211121547 | F24: 高中数学_01002 | G24: 65 | H24: 32.5 | I24: 56 | J24: 28 | K24: 60.5
A25: 23 | B25: 18010022068 | C25: 02328 | D25: 牛佳慧 | E25: 410522199209012022 | F25: 高中数学_01002 | G25: 71 | H25: 35.5 | I25: 50 | J25: 25 | K25: 60.5
A26: 24 | B26: 18010022024 | C26: 01534 | D26: 李一菲 | E26: 41052119940820002X | F26: 高中数学_01002 | G26: 68 | H26: 34 | I26: 52 | J26: 26 | K26: 60
A27: 25 | B27: 18010022044 | C27: 02596 | D27: 郑高瑜 | E27: 632624199303250028 | F27: 高中数学_01002 | G27: 65 | H27: 32.5 | I27: 53 | J27: 26.5 | K27: 59
A28: 26 | B28: 18010022023 | C28: 01064 | D28: 李科 | E28: 410504199510275005 | F28: 高中数学_01002 | G28: 57 | H28: 28.5 | I28: 60 | J28: 30 | K28: 58.5
A29: 27 | B29: 18010022028 | C29: 00416 | D29: 程玉荣 | E29: 410522199102060622 | F29: 高中数学_01002 | G29: 63 | H29: 31.5 | I29: 54 | J29: 27 | K29: 58.5
A30: 28 | B30: 18010022063 | C30: 02647 | D30: 魏大双 | E30: 410511199207090079 | F30: 高中数学_01002 | G30: 58 | H30: 29 | I30: 59 | J30: 29.5 | K30: 58.5
A31: 29 | B31: 18010022067 | C31: 02912 | D31: 靳璐璐 | E31: 410522199507152840 | F31: 高中数学_01002 | G31: 60.5 | H31: 30.25 | I31: 56 | J31: 28 | K31: 58.25
A32: 30 | B32: 18010022039 | C32: 01461 | D32: 王莹莹 | E32: 410526199309190526 | F32: 高中数学_01002 | G32: 65.5 | H32: 32.75 | I32: 48 | J32: 24 | K32: 56.75
A33: 31 | B33: 18010022061 | C33: 00999 | D33: 段霞 | E33: 412726199002061669 | F33: 高中数学_01002 | G33: 67.5 | H33: 33.75 | I33: 46 | J33: 23 | K33: 56.75
A34: 32 | B34: 18010022030 | C34: 00983 | D34: 关萌 | E34: 410522199201069323 | F34: 高中数学_01002 | G34: 69 | H34: 34.5 | I34: 44 | J34: 22 | K34: 56.5
A35: 33 | B35: 18010022036 | C35: 02726 | D35: 王晓寒 | E35: 410526199210029580 | F35: 高中数学_01002 | G35: 64 | H35: 32 | I35: 48 | J35: 24 | K35: 56
A36: 34 | B36: 18010022070 | C36: 01976 | D36: 田娇娇 | E36: 410522199210056487 | F36: 高中数学_01002 | G36: 63.5 | H36: 31.75 | I36: 48 | J36: 24 | K36: 55.75
A37: 35 | B37: 18010022047 | C37: 00582 | D37: 李永强 | E37: 410522199405102236 | F37: 高中数学_01002 | G37: 52.5 | H37: 26.25 | I37: 56 | J37: 28 | K37: 54.25
A38: 36 | B38: 18010022075 | C38: 00702 | D38: 王闪闪 | E38: 410522199106112426 | F38: 高中数学_01002 | G38: 62 | H38: 31 | I38: 46 | J38: 23 | K38: 54
A39: 37 | B39: 18010022025 | C39: 00971 | D39: 李政 | E39: 41052119911106803X | F39: 高中数学_01002 | G39: 58.5 | H39: 29.25 | I39: 49 | J39: 24.5 | K39: 53.75
A40: 38 | B40: 18010022042 | C40: 02251 | D40: 谷娜娜 | E40: 410522199209080340 | F40: 高中数学_01002 | G40: 61.5 | H40: 30.75 | I40: 46 | J40: 23 | K40: 53.75
A41: 39 | B41: 18010022050 | C41: 02744 | D41: 未霞飞 | E41: 410522199101221121 | F41: 高中数学_01002 | G41: 64 | H41: 32 | I41: 43 | J41: 21.5 | K41: 53.5
A42: 40 | B42: 18010022057 | C42: 02710 | D42: 武嘉鹏 | E42: 410503199408195037 | F42: 高中数学_01002 | G42: 60.5 | H42: 30.25 | I42: 46 | J42: 23 | K42: 53.25
A43: 41 | B43: 18010022016 | C43: 02140 | D43: 马林林 | E43: 410522199403304723 | F43: 高中数学_01002 | G43: 60 | H43: 30 | I43: 46 | J43: 23 | K43: =H43+J43 -> 53
A44: 42 | B44: 18010022038 | C44: 01993 | D44: 郭辽 | E44: 410782199309029590 | F44: 高中数学_01002 | G44: 61 | H44: 30.5 | I44: 45 | J44: 22.5 | K44: 53
A45: 43 | B45: 18010032087 | C45: 00040 | D45: 刘晓花 | E45: 410522199006158160 | F45: 高中英语_01003 | G45: 67.5 | H45: 33.75 | I45: 62 | J45: 31 | K45: 64.75
A46: 44 | B46: 18010032085 | C46: 01132 | D46: 闫卫云 | E46: 410504199006280024 | F46: 高中英语_01003 | G46: 68 | H46: 34 | I46: 60 | J46: 30 | K46: 64
A47: 45 | B47: 18010032108 | C47: 00180 | D47: 李茜 | E47: 410522199101041147 | F47: 高中英语_01003 | G47: 66 | H47: 33 | I47: 62 | J47: 31 | K47: 64
A48: 46 | B48: 18010032106 | C48: 00213 | D48: 魏朋丽 | E48: 410511199005061261 | F48: 高中英语_01003 | G48: 67.5 | H48: 33.75 | I48: 60 | J48: 30 | K48: 63.75
A49: 47 | B49: 18010032097 | C49: 00355 | D49: 王昕雯 | E49: 410503199004165042 | F49: 高中英语_01003 | G49: 68 | H49: 34 | I49: 58 | J49: 29 | K49: 63
A50: 48 | B50: 18010032152 | C50: 00897 | D50: 闫甜甜 | E50: 41052219940714814X | F50: 高中英语_01003 | G50: 68 | H50: 34 | I50: 58 | J50: 29 | K50: 63
A51: 49 | B51: 18010032112 | C51: 00977 | D51: 李攀 | E51: 41050319890609500X | F51: 高中英语_01003 | G51: 71.5 | H51: 35.75 | I51: 54 | J51: 27 | K51: 62.75
A52: 50 | B52: 18010032123 | C52: 02352 | D52: 刘炎 | E52: 41052219930413938x | F52: 高中英语_01003 | G52: 72.5 | H52: 36.25 | I52: 53 | J52: 26.5 | K52: 62.75
A53: 51 | B53: 18010032186 | C53: 02807 | D53: 张悦 | E53: 410522198910220829 | F53: 高中英语_01003 | G53: 70.5 | H53: 35.25 | I53: 55 | J53: 27.5 | K53: 62.75
A54: 52 | B54: 18010032194 | C54: 01871 | D54: 翟亚君 | E54: 410522199412184022 | F54: 高中英语_01003 | G54: 72.5 | H54: 36.25 | I54: 53 | J54: 26.5 | K54: 62.75
A55: 53 | B55: 18010032101 | C55: 00391 | D55: 郝广会 | E55: 41052119930210008X | F55: 高中英语_01003 | G55: 65 | H55: 32.5 | I55: 60 | J55: 30 | K55: 62.5
A56: 54 | B56: 18010032080 | C56: 02656 | D56: 史梦雨 | E56: 410502199002182520 | F56: 高中英语_01003 | G56: 63.5 | H56: 31.75 | I56: 61 | J56: 30.5 | K56: 62.25
A57: 55 | B57: 18010032143 | C57: 01847 | D57: 秦晓艳 | E57: 410511199106015045 | F57: 高中英语_01003 | G57: 74.5 | H57: 37.25 | I57: 50 | J57: 25 | K57: 62.25
A58: 56 | B58: 18010032148 | C58: 00129 | D58: 秦秀杰 | E58: 410522199602191821 | F58: 高中英语_01003 | G58: 66.5 | H58: 33.25 | I58: 58 | J58: 29 | K58: 62.25
A59: 57 | B59: 18010032154 | C59: 01860 | D59: 白晓玲 | E59: 410511199411171722 | F59: 高中英语_01003 | G59: 62.5 | H59: 31.25 | I59: 62 | J59: 31 | K59: 62.25
A60: 58 | B60: 18010032091 | C60: 02202 | D60: 原晓 | E60: 410523199402121024 | F60: 高中英语_01003 | G60: 71.5 | H60: 35.75 | I60: 52 | J60: 26 | K60: 61.75
A61: 59 | B61: 18010032142 | C61: 01680 | D61: 李冰钰 | E61: 410521199602148528 | F61: 高中英语_01003 | G61: 58.5 | H61: 29.25 | I61: 63 | J61: 31.5 | K61: 60.75
A62: 60 | B62: 18010032190 | C62: 02597 | D62: 商丽敏 | E62: 410511199105295006 | F62: 高中英语_01003 | G62: 70 | H62: 35 | I62: 51 | J62: 25.5 | K62: 60.5
A63: 61 | B63: 18010042203 | C63: 01700 | D63: 牛朝阳 | E63: 41052119951019552X | F63: 高中政治_01004 | G63: 71.5 | H63: 35.75 | I63: 63 | J63: 31.5 | K63: =H63+J63 -> 67.25
A64: 62 | B64: 18010042208 | C64: 02925 | D64: 高丹 | E64: 410526199005140028 | F64: 高中政治_01004 | G64: 70 | H64: 35 | I64: 63 | J64: 31.5 | K64: 66.5
A65: 63 | B65: 18010042202 | C65: 01834 | D65: 王钊 | E65: 410603199306260016 | F65: 高中政治_01004 | G65: 66 | H65: 33 | I65: 57 | J65: 28.5 | K65: 61.5
A66: 64 | B66: 18010042210 | C66: 00654 | D66: 郭凯琪 | E66: 410521199201018124 | F66: 高中政治_01004 | G66: 60 | H66: =G66/2 -> 30 | I66: 61 | J66: =I66/2 -> 30.5 | K66: 60.5
A67: 65 | B67: 18010042220 | C67: 02821 | D67: 姚丹 | E67: 410511199312060648 | F67: 高中政治_01004 | G67: 63 | H67: 31.5 | I67: 58 | J67: 29 | K67: 60.5
A68: 66 | B68: 18010042212 | C68: 01419 | D68: 刘新月 | E68: 410522199004133269 | F68: 高中政治_01004 | G68: 67.5 | H68: 33.75 | I68: 53 | J68: 26.5 | K68: 60.25
A69: 67 | B69: 18010052249 | C69: 01356 | D69: 李晨慧 | E69: 410522199509192029 | F69: 高中历史_01005 | G69: 73.5 | H69: 36.75 | I69: 67 | J69: 33.5 | K69: 70.25
A70: 68 | B70: 18010052250 | C70: 00804 | D70: 霍佳慧 | E70: 410511199604091745 | F70: 高中历史_01005 | G70: 64.5 | H70: 32.25 | I70: 71 | J70: 35.5 | K70: 67.75
A71: 69 | B71: 18010052229 | C71: 00690 | D71: 傅倩娜 | E71: 410521199509092021 | F71: 高中历史_01005 | G71: 69 | H71: 34.5 | I71: 60 | J71: 30 | K71: 64.5
A72: 70 | B72: 18010052235 | C72: 02087 | D72: 常佳佳 | E72: 410523199204203029 | F72: 高中历史_01005 | G72: 68.5 | H72: 34.25 | I72: 60 | J72: 30 | K72: 64.25
A73: 71 | B73: 18010052242 | C73: 01904 | D73: 庞贝贝 | E73: 410522198902076820 | F73: 高中历史_01005 | G73: 64 | H73: 32 | I73: 63 | J73: 31.5 | K73: 63.5
A74: 72 | B74: 18010052243 | C74: 01624 | D74: 李文斌 | E74: 410502198910151039 | F74: 高中历史_01005 | G74: 61.5 | H74: 30.75 | I74: 65 | J74: 32.5 | K74: 63.25
A75: 73 | B75: 18010062268 | C75: 02269 | D75: 吕小雪 | E75: 410521199002101523 | F75: 高中地理_01006 | G75: 65 | H75: 32.5 | I75: 72 | J75: 36 | K75: =H75+J75 -> 68.5
A76: 74 | B76: 18010062260 | C76: 02395 | D76: 崔可钰 | E76: 410521199509098028 | F76: 高中地理_01006 | G76: 63.5 | H76: 31.75 | I76: 65 | J76: 32.5 | K76: 64.25
A77: 75 | B77: 18010062267 | C77: 02183 | D77: 王雪佳 | E77: 410523199611109320 | F77: 高中地理_01006 | G77: 60.5 | H77: 30.25 | I77: 62 | J77: 31 | K77: 61.25
A78: 76 | B78: 18010062266 | C78: 02083 | D78: 李姣姣 | E78: 410522198903021127 | F78: 高中地理_01006 | G78: 65 | H78: 32.5 | I78: 57 | J78: 28.5 | K78: 61
A79: 77 | B79: 18010062261 | C79: 00567 | D79: 王玉洁 | E79: 14263119941224744X | F79: 高中地理_01006 | G79: 69.5 | H79: 34.75 | I79: 51 | J79: 25.5 | K79: 60.25
A80: 78 | B80: 18010062269 | C80: 01917 | D80: 马健 | E80: 410521199105250521 | F80: 高中地理_01006 | G80: 70.5 | H80: 35.25 | I80: 50 | J80: 25 | K80: 60.25
A81: 79 | B81: 18010072284 | C81: 01253 | D81: 王卫敏 | E81: 410621198603020586 | F81: 高中物理_01007 | G81: 70 | H81: 35 | I81: 56 | J81: 28 | K81: 63
A82: 80 | B82: 18010072282 | C82: 01591 | D82: 吴世玉 | E82: 410522199201011359 | F82: 高中物理_01007 | G82: 64 | H82: 32 | I82: 54 | J82: 27 | K82: 59
A83: 81 | B83: 18010072279 | C83: 00478 | D83: 张超 | E83: 410622199511241016 | F83: 高中物理_01007 | G83: 64.5 | H83: 32.25 | I83: 50 | J83: 25 | K83: 57.25
A84: 82 | B84: 18010072277 | C84: 00548 | D84: 李渊 | E84: 410323198809102516 | F84: 高中物理_01007 | G84: 53.5 | H84: 26.75 | I84: 60 | J84: 30 | K84: 56.75
A85: 83 | B85: 18010072283 | C85: 00679 | D85: 李丹丹 | E85: 410522199003035843 | F85: 高中物理_01007 | G85: 68.5 | H85: 34.25 | I85: 45 | J85: 22.5 | K85: 56.75
A86: 84 | B86: 18010072278 | C86: 01529 | D86: 张海青 | E86: 41052219900303586X | F86: 高中物理_01007 | G86: 66 | H86: 33 | I86: 44 | J86: 22 | K86: 55
A87: 85 | B87: 18010072289 | C87: 00527 | D87: 王志舜 | E87: 410521199502231535 | F87: 高中物理_01007 | G87: 54 | H87: 27 | I87: 55 | J87: 27.5 | K87: 54.5
A88: 86 | B88: 18010072280 | C88: 00494 | D88: 李智亿 | E88: 41052219930101205X | F88: 高中物理_01007 | G88: 60.5 | H88: 30.25 | I88: 48 | J88: 24 | K88: 54.25
A89: 87 | B89: 18010072288 | C89: 00093 | D89: 王紫霖 | E89: 410522199007057767 | F89: 高中物理_01007 | G89: 69 | H89: 34.5 | I89: 39 | J89: 19.5 | K89: 54
A90: 88 | B90: 18010072293 | C90: 02363 | D90: 王涛 | E90: 410522199112221354 | F90: 高中物理_01007 | G90: 61.5 | H90: 30.75 | I90: 42 | J90: 21 | K90: 51.75
A91: 89 | B91: 18010072286 | C91: 01882 | D91: 任勇 | E91: 410526198904150014 | F91: 高中物理_01007 | G91: 55.5 | H91: 27.75 | I91: 47 | J91: 23.5 | K91: 51.25
A92: 90 | B92: 18010072285 | C92: 02368 | D92: 郭军华 | E92: 410521198910013014 | F92: 高中物理_01007 | G92: 55 | H92: 27.5 | I92: 45 | J92: 22.5 | K92: 50
A93: 91 | B93: 18010082318 | C93: 01181 | D93: 宋巧会 | E93: 410521199403100564 | F93: 高中化学_01008 | G93: 72 | H93: 36 | I93: 57 | J93: 28.5 | K93: =H93+J93 -> 64.5
A94: 92 | B94: 18010082316 | C94: 00331 | D94: 张小妮 | E94: 410621199002062101 | F94: 高中化学_01008 | G94: 72.5 | H94: 36.25 | I94: 54 | J94: 27 | K94: 63.25
A95: 93 | B95: 18010082312 | C95: 01383 | D95: 黄茹梦 | E95: 41092819920218514X | F95: 高中化学_01008 | G95: 68 | H95: 34 | I95: 55 | J95: 27.5 | K95: 61.5
A96: 94 | B96: 18010082319 | C96: 02112 | D96: 王耀 | E96: 410522198806080029 | F96: 高中化学_01008 | G96: 68.5 | H96: 34.25 | I96: 53 | J96: 26.5 | K96: 60.75
A97: 95 | B97: 18010082329 | C97: 01243 | D97: 张月 | E97: 410523199003207584 | F97: 高中化学_01008 | G97: 65.5 | H97: 32.75 | I97: 56 | J97: 28 | K97: 60.75
A98: 96 | B98: 18010082320 | C98: 01957 | D98: 窦苗苗 | E98: 410522199411182260 | F98: 高中化学_01008 | G98: 68 | H98: 34 | I98: 50 | J98: 25 | K98: 59
A99: 97 | B99: 18010082333 | C99: 00657 | D99: 程欢 | E99: 410522199002270024 | F99: 高中化学_01008 | G99: 65 | H99: 32.5 | I99: 53 | J99: 26.5 | K99: 59
A100: 98 | B100: 18010082326 | C100: 01433 | D100: 陈婕 | E100: 410511199212030046 | F100: 高中化学_01008 | G100: 68 | H100: 34 | I100: 49 | J100: 24.5 | K100: 58.5
A101: 99 | B101: 18010082310 | C101: 01497 | D101: 李文华 | E101: 410522198910252046 | F101: 高中化学_01008 | G101: 66 | H101: 33 | I101: 50 | J101: 25 | K101: 58
A102: 100 | B102: 18010082301 | C102: 02607 | D102: 曹颖 | E102: 410522198910174746 | F102: 高中化学_01008 | G102: 67.5 | H102: 33.75 | I102: 48 | J102: 24 | K102: 57.75
A103: 101 | B103: 18010082296 | C103: 01558 | D103: 申晓瑞 | E103: 410522199101129341 | F103: 高中化学_01008 | G103: 60 | H103: 30 | I103: 55 | J103: 27.5 | K103: 57.5
A104: 102 | B104: 18010082305 | C104: 02181 | D104: 申玲风 | E104: 410522198911240848 | F104: 高中化学_01008 | G104: 71 | H104: 35.5 | I104: 44 | J104: 22 | K104: 57.5
A105: 103 | B105: 18010092337 | C105: 01232 | D105: 连云飞 | E105: 410522198910092425 | F105: 高中生物_01009 | G105: 75 | H105: 37.5 | I105: 58 | J105: 29 | K105: 66.5
A106: 104 | B106: 18010092349 | C106: 00446 | D106: 陈树贤 | E106: 410521198812154542 | F106: 高中生物_01009 | G106: 74 | H106: 37 | I106: 55 | J106: 27.5 | K106: 64.5
A107: 105 | B107: 18010092344 | C107: 02508 | D107: 赵枝艳 | E107: 410522199511272845 | F107: 高中生物_01009 | G107: 66.5 | H107: 33.25 | I107: 56 | J107: 28 | K107: 61.25
A108: 106 | B108: 18010092336 | C108: 00744 | D108: 张致环 | E108: 410522199205011946 | F108: 高中生物_01009 | G108: 62 | H108: 31 | I108: 57 | J108: 28.5 | K108: 59.5
A109: 107 | B109: 18010092362 | C109: 01330 | D109: 金秋丽 | E109: 411425199208147229 | F109: 高中生物_01009 | G109: 63 | H109: 31.5 | I109: 56 | J109: 28 | K109: 59.5
A110: 108 | B110: 18010092341 | C110: 01001 | D110: 冯静芝 | E110: 410523199307187527 | F110: 高中生物_01009 | G110: 65 | H110: 32.5 | I110: 51 | J110: 25.5 | K110: 58
A111: 109 | B111: 18010102416 | C111: 02124 | D111: 李金桐 | E111: 410503199409285034 | F111: 高中体育_01010 | G111: 73.5 | H111: 36.75 | I111: 67 | J111: 33.5 | K111: 70.25
A112: 110 | B112: 18010102364 | C112: 01297 | D112: 梁莹 | E112: 410504199012202065 | F112: 高中体育_01010 | G112: 67 | H112: 33.5 | I112: 55 | J112: 27.5 | K112: 61
A113: 111 | B113: 18010102370 | C113: 00618 | D113: 王鹏 | E113: 410522199003145516 | F113: 高中体育_01010 | G113: 63 | H113: 31.5 | I113: 57 | J113: 28.5 | K113: 60
A114: 112 | B114: 18010102382 | C114: 03031 | D114: 李明芳 | E114: 410511198903275005 | F114: 高中体育_01010 | G114: 56 | H114: 28 | I114: 61 | J114: 30.5 | K114: 58.5
A115: 113 | B115: 18010102396 | C115: 00041 | D115: 林田野 | E115: 410522199206204459 | F115: 高中体育_01010 | G115: 60 | H115: 30 | I115: 51 | J115: 25.5 | K115: 55.5
A116: 114 | B116: 18010102389 | C116: 01214 | D116: 王聪 | E116: 410522199204083710 | F116: 高中体育_01010 | G116: 57 | H116: 28.5 | I116: 53 | J116: 26.5 | K116: 55
A117: 115 | B117: 18010112469 | C117: 01135 | D117: 何雪 | E117: 410511199309070044 | F117: 高中美术_01011 | G117: 72 | H117: 36 | I117: 60 | J117: 30 | K117: =H117+J117 -> 66
A118: 116 | B118: 18010112461 | C118: 00105 | D118: 薛瑶 | E118: 410503199111095000 | F118: 高中美术_01011 | G118: 74 | H118: 37 | I118: 53 | J118: 26.5 | K118: 63.5
A119: 117 | B119: 18010112445 | C119: 01586 | D119: 杨慧超 | E119: 410881199304063529 | F119: 高中美术_01011 | G119: 69.5 | H119: 34.75 | I119: 52 | J119: 26 | K119: 60.75
A120: 118 | B120: 18010122509 | C120: 02557 | D120: 臧晓 | E120: 410523199311154023 | F120: 高中心理_01012 | G120: 72 | H120: 36 | I120: 61 | J120: 30.5 | K120: 66.5
A121: 119 | B121: 18010122508 | C121: 00018 | D121: 韩悦 | E121: 410527199710209728 | F121: 高中心理_01012 | G121: 70 | H121: 35 | I121: 61 | J121: 30.5 | K121: 65.5
A122: 120 | B122: 18010122519 | C122: 00181 | D122: 贾晓晓 | E122: 410522199312185845 | F122: 高中心理_01012 | G122: 70.5 | H122: 35.25 | I122: 54 | J122: 27 | K122: 62.25
A123: 121 | B123: 18020011537 | C123: 02199 | D123: 耿宁宁 | E123: 410522199212017801 | F123: 初中语文_02001 | G123: 74.5 | H123: 37.25 | I123: 64 | J123: 32 | K123: 69.25
A124: 122 | B124: 18020011548 | C124: 02204 | D124: 李芳 | E124: 410503198903081526 | F124: 初中语文_02001 | G124: 67.5 | H124: 33.75 | I124: 70 | J124: 35 | K124: 68.75
A125: 123 | B125: 18020011471 | C125: 02113 | D125: 施瑶 | E125: 410505199101085004 | F125: 初中语文_02001 | G125: 67.5 | H125: 33.75 | I125: 68 | J125: 34 | K125: 67.75
A126: 124 | B126: 18020011478 | C126: 01069 | D126: 郜晶晶 | E126: 410511199001031727 | F126: 初中语文_02001 | G126: 70.5 | H126: 35.25 | I126: 63 | J126: 31.5 | K126: 66.75
A127: 125 | B127: 18020011576 | C127: 01147 | D127: 师银平 | E127: 410511199301085022 | F127: 初中语文_02001 | G127: 69.5 | H127: 34.75 | I127: 63 | J127: 31.5 | K127: 66.25
A128: 126 | B128: 18020011546 | C128: 02667 | D128: 郭潇潇 | E128: 410521199208105546 | F128: 初中语文_02001 | G128: 63 | H128: 31.5 | I128: 69 | J128: 34.5 | K128: 66
A129: 127 | B129: 18020011523 | C129: 00402 | D129: 崔祥云 | E129: 410523199104146522 | F129: 初中语文_02001 | G129: 68 | H129: 34 | I129: 63 | J129: 31.5 | K129: 65.5
A130: 128 | B130: 18020011544 | C130: 01281 | D130: 冯婷婷 | E130: 410521199202243526 | F130: 初中语文_02001 | G130: 70 | H130: =G130/2 -> 35 | I130: 61 | J130: =I130/2 -> 30.5 | K130: 65.5
A131: 129 | B131: 18020011464 | C131: 02239 | D131: 张越 | E131: 410511199510221721 | F131: 初中语文_02001 | G131: 70 | H131: 35 | I131: 60 | J131: 30 | K131: 65
A132: 130 | B132: 18020011508 | C132: 02917 | D132: 白晶艳 | E132: 410522199101279323 | F132: 初中语文_02001 | G132: 64.5 | H132: 32.25 | I132: 64 | J132: 32 | K132: 64.25
A133: 131 | B133: 18020011518 | C133: 02451 | D133: 冯丽倩 | E133: 410502199311303525 | F133: 初中语文_02001 | G133: 71.5 | H133: 35.75 | I133: 57 | J133: 28.5 | K133: 64.25
A134: 132 | B134: 18020011530 | C134: 02843 | D134: 赵雅楠 | E134: 410503199012195006 | F134: 初中语文_02001 | G134: 69.5 | H134: 34.75 | I134: 58 | J134: 29 | K134: 63.75
A135: 133 | B135: 18020011481 | C135: 01249 | D135: 原瑞芬 | E135: 41058119910301904X | F135: 初中语文_02001 | G135: 66.5 | H135: 33.25 | I135: 60 | J135: 30 | K135: 63.25
A136: 134 | B136: 18020011488 | C136: 01657 | D136: 王书贤 | E136: 410581199412109065 | F136: 初中语文_02001 | G136: 62.5 | H136: 31.25 | I136: 64 | J136: 32 | K136: 63.25
A137: 135 | B137: 18020011485 | C137: 02690 | D137: 王瑶瑶 | E137: 410511199212191747 | F137: 初中语文_02001 | G137: 61 | H137: 30.5 | I137: 65 | J137: 32.5 | K137: 63
A138: 136 | B138: 18020011487 | C138: 03014 | D138: 时书照 | E138: 410522199109245865 | F138: 初中语文_02001 | G138: 57 | H138: 28.5 | I138: 69 | J138: 34.5 | K138: 63
A139: 137 | B139: 18020011521 | C139: 01457 | D139: 赵瑞平 | E139: 410523198905234026 | F139: 初中语文_02001 | G139: 67 | H139: 33.5 | I139: 58 | J139: 29 | K139: 62.5
A140: 138 | B140: 18020011557 | C140: 00551 | D140: 高智敏 | E140: 41052219930520936X | F140: 初中语文_02001 | G140: 60 | H140: 30 | I140: 65 | J140: 32.5 | K140: 62.5
A141: 139 | B141: 18020011507 | C141: 00472 | D141: 邢珊 | E141: 410511199409201726 | F141: 初中语文_02001 | G141: 64.5 | H141: 32.25 | I141: 60 | J141: 30 | K141: 62.25
A142: 140 | B142: 18020011560 | C142: 01333 | D142: 郝筱瑜 | E142: 410503199302075029 | F142: 初中语文_02001 | G142: 68.5 | H142: 34.25 | I142: 56 | J142: 28 | K142: 62.25
A143: 141 | B143: 18020011482 | C143: 03041 | D143: 骈楠楠 | E143: 410511199107151305 | F143: 初中语文_02001 | G143: 67 | H143: 33.5 | I143: 57 | J143: 28.5 | K143: 62
A144: 142 | B144: 18020011538 | C144: 00206 | D144: 魏沙沙 | E144: 410511198905041261 | F144: 初中语文_02001 | G144: 69 | H144: 34.5 | I144: 55 | J144: 27.5 | K144: 62
A145: 143 | B145: 18020011543 | C145: 01887 | D145: 桑巧彦 | E145: 410521199209027041 | F145: 初中语文_02001 | G145: 68 | H145: 34 | I145: 56 | J145: 28 | K145: 62
A146: 144 | B146: 18020011469 | C146: 00482 | D146: 路广艳 | E146: 410521199005041546 | F146: 初中语文_02001 | G146: 71.5 | H146: 35.75 | I146: 52 | J146: 26 | K146: 61.75
A147: 145 | B147: 18020011502 | C147: 01649 | D147: 王赛楠 | E147: 41052319940810652X | F147: 初中语文_02001 | G147: 71.5 | H147: 35.75 | I147: 52 | J147: 26 | K147: 61.75
A148: 146 | B148: 18020011573 | C148: 02767 | D148: 贾军英 | E148: 410621199105020545 | F148: 初中语文_02001 | G148: 62.5 | H148: 31.25 | I148: 61 | J148: 30.5 | K148: 61.75
A149: 147 | B149: 18020021678 | C149: 02680 | D149: 范雪颖 | E149: 410511199504211244 | F149: 初中数学_02002 | G149: 70.5 | H149: 35.25 | I149: 63 | J149: 31.5 | K149: =H149+J149 -> 66.75
A150: 148 | B150: 18020021584 | C150: 01572 | D150: 张换 | E150: 410522199109010820 | F150: 初中数学_02002 | G150: 72.5 | H150: 36.25 | I150: 55 | J150: 27.5 | K150: 63.75
A151: 149 | B151: 18020021681 | C151: 01071 | D151: 牛吉 | E151: 410522199210072831 | F151: 初中数学_02002 | G151: 65 | H151: 32.5 | I151: 62 | J151: 31 | K151: 63.5
A152: 150 | B152: 18020021587 | C152: 01237 | D152: 李小霞 | E152: 41050419890827004X | F152: 初中数学_02002 | G152: 73 | H152: 36.5 | I152: 53 | J152: 26.5 | K152: 63
A153: 151 | B153: 18020021626 | C153: 02267 | D153: 原军芳 | E153: 410521199105108082 | F153: 初中数学_02002 | G153: 64 | H153: 32 | I153: 62 | J153: 31 | K153: 63
A154: 152 | B154: 18020021643 | C154: 01998 | D154: 王溪源 | E154: 410522199101210641 | F154: 初中数学_02002 | G154: 62 | H154: 31 | I154: 63 | J154: 31.5 | K154: 62.5
A155: 153 | B155: 18020021648 | C155: 00375 | D155: 赵振 | E155: 410504198910171518 | F155: 初中数学_02002 | G155: 69 | H155: 34.5 | I155: 56 | J155: 28 | K155: 62.5
A156: 154 | B156: 18020021633 | C156: 00831 | D156: 刘冬 | E156: 372925199210010542 | F156: 初中数学_02002 | G156: 70.5 | H156: 35.25 | I156: 53 | J156: 26.5 | K156: 61.75
A157: 155 | B157: 18020021685 | C157: 00151 | D157: 王智帅 | E157: 410521199209120537 | F157: 初中数学_02002 | G157: 66.5 | H157: 33.25 | I157: 57 | J157: 28.5 | K157: 61.75
A158: 156 | B158: 18020021615 | C158: 01794 | D158: 郭朝霞 | E158: 410521199201202044 | F158: 初中数学_02002 | G158: 60 | H158: 30 | I158: 63 | J158: 31.5 | K158: 61.5
A159: 157 | B159: 18020021593 | C159: 02084 | D159: 郭梦洁 | E159: 410523199605290020 | F159: 初中数学_02002 | G159: 65.5 | H159: 32.75 | I159: 56 | J159: 28 | K159: 60.75
A160: 158 | B160: 18020021652 | C160: 00951 | D160: 沈冉 | E160: 410504199505020024 | F160: 初中数学_02002 | G160: 65.5 | H160: 32.75 | I160: 56 | J160: 28 | K160: 60.75
A161: 159 | B161: 18020021620 | C161: 00061 | D161: 吴琼 | E161: 410522199603190345 | F161: 初中数学_02002 | G161: 65.5 | H161: 32.75 | I161: 55 | J161: 27.5 | K161: 60.25
A162: 160 | B162: 18020021604 | C162: 00820 | D162: 韩玉 | E162: 410511199109250614 | F162: 初中数学_02002 | G162: 64 | H162: 32 | I162: 56 | J162: 28 | K162: 60
A163: 161 | B163: 18020021614 | C163: 01066 | D163: 张敏 | E163: 410522199202295525 | F163: 初中数学_02002 | G163: 70 | H163: 35 | I163: 50 | J163: 25 | K163: 60
A164: 162 | B164: 18020021637 | C164: 00263 | D164: 侯志彭 | E164: 410522199202152815 | F164: 初中数学_02002 | G164: 64 | H164: 32 | I164: 56 | J164: 28 | K164: 60
A165: 163 | B165: 18020021665 | C165: 02960 | D165: 丁云 | E165: 410603199203243520 | F165: 初中数学_02002 | G165: 68 | H165: 34 | I165: 52 | J165: 26 | K165: 60
A166: 164 | B166: 18020021591 | C166: 00138 | D166: 张帆 | E166: 410521199208171527 | F166: 初中数学_02002 | G166: 69 | H166: 34.5 | I166: 50 | J166: 25 | K166: 59.5
A167: 165 | B167: 18020021625 | C167: 00125 | D167: 刘帆 | E167: 410522199501072428 | F167: 初中数学_02002 | G167: 68 | H167: 34 | I167: 51 | J167: 25.5 | K167: 59.5
A168: 166 | B168: 18020021589 | C168: 01699 | D168: 张丽 | E168: 410522199304064066 | F168: 初中数学_02002 | G168: 62.5 | H168: 31.25 | I168: 56 | J168: 28 | K168: 59.25
A169: 167 | B169: 18020021698 | C169: 00112 | D169: 路振国 | E169: 410521199010250537 | F169: 初中数学_02002 | G169: 68.5 | H169: 34.25 | I169: 50 | J169: 25 | K169: 59.25
A170: 168 | B170: 18020021600 | C170: 00227 | D170: 康艳芬 | E170: 410522199310058164 | F170: 初中数学_02002 | G170: 66.5 | H170: 33.25 | I170: 51 | J170: 25.5 | K170: 58.75
A171: 169 | B171: 18020021617 | C171: 01133 | D171: 李欢欢 | E171: 410522199101025286 | F171: 初中数学_02002 | G171: 71.5 | H171: 35.75 | I171: 46 | J171: 23 | K171: 58.75
A172: 170 | B172: 18020021647 | C172: 02372 | D172: 何帅康 | E172: 410522199511041174 | F172: 初中数学_02002 | G172: 66.5 | H172: 33.25 | I172: 51 | J172: 25.5 | K172: 58.75
A173: 171 | B173: 18020021667 | C173: 00305 | D173: 宋敬丹 | E173: 41052319930210004X | F173: 初中数学_02002 | G173: 66.5 | H173: 33.25 | I173: 51 | J173: 25.5 | K173: 58.75
A174: 172 | B174: 18020021624 | C174: 01110 | D174: 张又文 | E174: 410521198906011657 | F174: 初中数学_02002 | G174: 65.5 | H174: 32.75 | I174: 51 | J174: 25.5 | K174: 58.25
A175: 173 | B175: 18020021671 | C175: 02187 | D175: 胡晓桐 | E175: 410522199511140025 | F175: 初中数学_02002 | G175: 64.5 | H175: 32.25 | I175: 52 | J175: 26 | K175: 58.25
A176: 174 | B176: 18020021659 | C176: 01141 | D176: 骈梦梅 | E176: 410511199104301240 | F176: 初中数学_02002 | G176: 60 | H176: 30 | I176: 56 | J176: 28 | K176: 58
A177: 175 | B177: 18020021623 | C177: 02776 | D177: 刘舒敏 | E177: 410522199512100324 | F177: 初中数学_02002 | G177: 65.5 | H177: 32.75 | I177: 50 | J177: 25 | K177: 57.75
A178: 176 | B178: 18020021629 | C178: 01441 | D178: 张安旗 | E178: 410581199407079041 | F178: 初中数学_02002 | G178: 65 | H178: 32.5 | I178: 50 | J178: 25 | K178: 57.5
A179: 177 | B179: 18020021682 | C179: 02460 | D179: 郝高云 | E179: 410521198812060028 | F179: 初中数学_02002 | G179: 66.5 | H179: 33.25 | I179: 48 | J179: 24 | K179: 57.25
A180: 178 | B180: 18020021688 | C180: 01923 | D180: 史潇洒 | E180: 410526199504272324 | F180: 初中数学_02002 | G180: 61.5 | H180: 30.75 | I180: 53 | J180: 26.5 | K180: 57.25
A181: 179 | B181: 18020021603 | C181: 02382 | D181: 郝书贝 | E181: 410522198911268146 | F181: 初中数学_02002 | G181: 67 | H181: 33.5 | I181: 47 | J181: 23.5 | K181: 57
A182: 180 | B182: 18020021609 | C182: 02972 | D182: 韩文玲 | E182: 410522199004273309 | F182: 初中数学_02002 | G182: 72 | H182: 36 | I182: 42 | J182: 21 | K182: 57
A183: 181 | B183: 18020021592 | C183: 02546 | D183: 贾晓双 | E183: 410522199308190342 | F183: 初中数学_02002 | G183: 70.5 | H183: 35.25 | I183: 43 | J183: 21.5 | K183: 56.75
A184: 182 | B184: 18020021632 | C184: 01929 | D184: 杨亮 | E184: 410523199503267516 | F184: 初中数学_02002 | G184: 64.5 | H184: 32.25 | I184: 49 | J184: 24.5 | K184: 56.75
A185: 183 | B185: 18020021668 | C185: 01612 | D185: 刘雪 | E185: 410522199411015542 | F185: 初中数学_02002 | G185: 62.5 | H185: 31.25 | I185: 51 | J185: 25.5 | K185: 56.75
A186: 184 | B186: 18020021634 | C186: 02592 | D186: 王庆庆 | E186: 410527199211279721 | F186: 初中数学_02002 | G186: 66 | H186: 33 | I186: 47 | J186: 23.5 | K186: 56.5
A187: 185 | B187: 18020021644 | C187: 01946 | D187: 李红余 | E187: 410522199601282422 | F187: 初中数学_02002 | G187: 69.5 | H187: 34.75 | I187: 43 | J187: 21.5 | K187: 56.25
A188: 186 | B188: 18020021679 | C188: 00159 | D188: 侯文灿 | E188: 410511199503050020 | F188: 初中数学_02002 | G188: 64.5 | H188: 32.25 | I188: 48 | J188: 24 | K188: 56.25
A189: 187 | B189: 18020021674 | C189: 02803 | D189: 马慧萍 | E189: 410522199110255243 | F189: 初中数学_02002 | G189: 60 | H189: 30 | I189: 52 | J189: 26 | K189: 56
A190: 188 | B190: 18020021616 | C190: 02599 | D190: 李永威 | E190: 410522198902122217 | F190: 初中数学_02002 | G190: 63.5 | H190: 31.75 | I190: 48 | J190: 24 | K190: 55.75
A191: 189 | B191: 18020021630 | C191: 01311 | D191: 韩文苗 | E191: 410522199406062440 | F191: 初中数学_02002 | G191: 60 | H191: 30 | I191: 51 | J191: 25.5 | K191: 55.5
A192: 190 | B192: 18020021649 | C192: 02059 | D192: 许晓鸥 | E192: 410511199411225006 | F192: 初中数学_02002 | G192: 57 | H192: 28.5 | I192: 54 | J192: 27 | K192: 55.5
A193: 191 | B193: 18020021658 | C193: 02055 | D193: 韩智灵 | E193: 410522199303309340 | F193: 初中数学_02002 | G193: 67 | H193: 33.5 | I193: 44 | J193: 22 | K193: 55.5
A194: 192 | B194: 18020021686 | C194: 00118 | D194: 王丽珊 | E194: 410504199105105029 | F194: 初中数学_02002 | G194: 67 | H194: =G194/2 -> 33.5 | I194: 44 | J194: =I194/2 -> 22 | K194: 55.5
A195: 193 | B195: 18020031715 | C195: 02022 | D195: 梁雪楠 | E195: 410503199311155047 | F195: 初中英语_02003 | G195: 77 | H195: 38.5 | I195: 61 | J195: 30.5 | K195: =H195+J195 -> 69
A196: 194 | B196: 18020031748 | C196: 02406 | D196: 常敬珂 | E196: 410504199001220022 | F196: 初中英语_02003 | G196: 76.5 | H196: 38.25 | I196: 56 | J196: 28 | K196: 66.25
A197: 195 | B197: 18020031733 | C197: 00039 | D197: 王沛汝 | E197: 410522198809292043 | F197: 初中英语_02003 | G197: 71 | H197: 35.5 | I197: 60 | J197: 30 | K197: 65.5
A198: 196 | B198: 18020031744 | C198: 02169 | D198: 范露玫 | E198: 410511199404011229 | F198: 初中英语_02003 | G198: 65 | H198: 32.5 | I198: 65 | J198: 32.5 | K198: 65
A199: 197 | B199: 18020031757 | C199: 01597 | D199: 刘飞燕 | E199: 410522199205113723 | F199: 初中英语_02003 | G199: 69 | H199: 34.5 | I199: 60 | J199: 30 | K199: 64.5
A200: 198 | B200: 18020031761 | C200: 01272 | D200: 冯方波 | E200: 410522199403126429 | F200: 初中英语_02003 | G200: 68 | H200: 34 | I200: 60 | J200: 30 | K200: 64
... 254 more rows
